[Event "Titled Tuesday Blitz November 07 Late 2023"]
[White "Khismatullin, Denis"]
[Black "Tologon tegin, Semetei"]
[WhiteFideId "4142578"]
[BlackFideId "13800574"]
[WhiteElo "2933"]
[BlackElo "2584"]
[Result "0-1"]
[Round "5"]
[TimeControl "180+1"]
[Date "2023.11.07"]
[WhiteClock "0:00:00"]
[BlackClock "0:01:05"]
[Board "47"]

1. e4 {[%clk 0:02:57]}  Nc6 {[%clk 0:02:57]} 2. Nf3 {[%clk 0:02:56]}  e6 {[%clk 0:02:47]} 3. d4 {[%clk 0:02:55]}  d5 {[%clk 0:02:47]} 4. Nbd2 {[%clk 0:02:50]}  dxe4 {[%clk 0:02:42]} 5. Nxe4 {[%clk 0:02:49]}  Nf6 {[%clk 0:02:43]} 6. Bg5 {[%clk 0:02:44]}  Be7 {[%clk 0:02:43]} 7. Bxf6 {[%clk 0:02:43]}  Bxf6 {[%clk 0:02:44]} 8. c3 {[%clk 0:02:41]}  O-O {[%clk 0:02:41]} 9. Bb5 {[%clk 0:02:40]}  Bd7 {[%clk 0:02:40]} 10. Qe2 {[%clk 0:02:39]}  a6 {[%clk 0:02:34]} 11. Bd3 {[%clk 0:02:39]}  Re8 {[%clk 0:02:31]} 12. O-O-O {[%clk 0:02:37]}  e5 {[%clk 0:02:19]} 13. d5 {[%clk 0:02:36]}  Na7 {[%clk 0:02:16]} 14. h4 {[%clk 0:02:30]}  Bg4 {[%clk 0:02:13]} 15. Qc2 {[%clk 0:02:11]}  h6 {[%clk 0:02:02]} 16. c4 {[%clk 0:01:55]}  Nc8 {[%clk 0:01:51]} 17. c5 {[%clk 0:01:54]}  b6 {[%clk 0:01:50]} 18. d6 {[%clk 0:01:47]}  bxc5 {[%clk 0:01:42]} 19. d7 {[%clk 0:01:20]}  Bxd7 {[%clk 0:01:38]} 20. Bc4 {[%clk 0:01:19]}  Nd6 {[%clk 0:01:32]} 21. Nxd6 {[%clk 0:01:11]}  cxd6 {[%clk 0:01:33]} 22. Rxd6 {[%clk 0:01:10]}  e4 {[%clk 0:01:25]} 23. Rhd1 {[%clk 0:01:02]}  Ra7 {[%clk 0:01:12]} 24. Nd2 {[%clk 0:00:46]}  Be5 {[%clk 0:01:09]} 25. Nxe4 {[%clk 0:00:36]}  Bxd6 {[%clk 0:01:09]} 26. Nxd6 {[%clk 0:00:36]}  Rf8 {[%clk 0:01:09]} 27. g3 {[%clk 0:00:00]}  Qe7 {[%clk 0:01:05]} 0-1


[Site "https://www.chess.com"]

[Event "Titled Tuesday Blitz November 07 Late 2023"]
[White "Brodsky, David"]
[Black "Keleberda, Tymur"]
[WhiteFideId "2073250"]
[BlackFideId "14174294"]
[WhiteElo "2800"]
[BlackElo "2522"]
[Result "1-0"]
[Round "5"]
[TimeControl "180+1"]
[Date "2023.11.07"]
[WhiteClock "0:00:14"]
[BlackClock "0:00:00"]
[Board "48"]

1. e4 {[%clk 0:03:00]}  c5 {[%clk 0:02:56]} 2. Nf3 {[%clk 0:03:01]}  d6 {[%clk 0:02:55]} 3. d4 {[%clk 0:03:01]}  cxd4 {[%clk 0:02:56]} 4. Nxd4 {[%clk 0:03:02]}  Nf6 {[%clk 0:02:55]} 5. Nc3 {[%clk 0:03:03]}  a6 {[%clk 0:02:56]} 6. Rg1 {[%clk 0:03:02]}  e6 {[%clk 0:02:45]} 7. g4 {[%clk 0:03:02]}  h6 {[%clk 0:02:43]} 8. h4 {[%clk 0:02:59]}  Nfd7 {[%clk 0:02:39]} 9. g5 {[%clk 0:02:58]}  hxg5 {[%clk 0:02:39]} 10. hxg5 {[%clk 0:02:59]}  g6 {[%clk 0:02:36]} 11. Be3 {[%clk 0:02:54]}  Bg7 {[%clk 0:02:34]} 12. Qd2 {[%clk 0:02:45]}  Ne5 {[%clk 0:02:24]} 13. O-O-O {[%clk 0:02:43]}  Rh2 {[%clk 0:02:17]} 14. Be2 {[%clk 0:02:34]}  Qc7 {[%clk 0:02:08]} 15. Ndb5 {[%clk 0:02:02]}  axb5 {[%clk 0:02:01]} 16. Nxb5 {[%clk 0:02:03]}  Qc6 {[%clk 0:00:57]} 17. Nxd6+ {[%clk 0:02:01]}  Kf8 {[%clk 0:00:58]} 18. Nxc8 {[%clk 0:01:03]}  Qxc8 {[%clk 0:00:57]} 19. Qd8+ {[%clk 0:01:03]}  Qxd8 {[%clk 0:00:55]} 20. Rxd8+ {[%clk 0:01:04]}  Ke7 {[%clk 0:00:51]} 21. Rgd1 {[%clk 0:01:05]}  Ned7 {[%clk 0:00:46]} 22. R1xd7+ {[%clk 0:01:04]}  Nxd7 {[%clk 0:00:45]} 23. Rxa8 {[%clk 0:01:04]}  Rh1+ {[%clk 0:00:43]} 24. Kd2 {[%clk 0:01:02]}  Bxb2 {[%clk 0:00:42]} 25. Ra7 {[%clk 0:00:34]}  Bc1+ {[%clk 0:00:41]} 26. Kd3 {[%clk 0:00:31]}  Bxe3 {[%clk 0:00:41]} 27. Kxe3 {[%clk 0:00:31]}  Nc5 {[%clk 0:00:37]} 28. Kd4 {[%clk 0:00:27]}  Re1 {[%clk 0:00:19]} 29. Kxc5 {[%clk 0:00:18]}  Rxe2 {[%clk 0:00:18]} 30. Rxb7+ {[%clk 0:00:19]}  Kf8 {[%clk 0:00:18]} 31. Rb2 {[%clk 0:00:13]}  Rxf2 {[%clk 0:00:17]} 32. a4 {[%clk 0:00:13]}  Rg2 {[%clk 0:00:16]} 33. a5 {[%clk 0:00:13]}  Rxg5+ {[%clk 0:00:14]} 34. Kb6 {[%clk 0:00:14]}  Rh5 {[%clk 0:00:03]} 35. a6 {[%clk 0:00:13]}  Ke7 {[%clk 0:00:04]} 36. a7 {[%clk 0:00:14]}  Rh8 {[%clk 0:00:04]} 37. c4 {[%clk 0:00:12]}  Kd6 {[%clk 0:00:03]} 38. c5+ {[%clk 0:00:13]}  Ke5 {[%clk 0:00:03]} 39. c6 {[%clk 0:00:13]}  g5 {[%clk 0:00:03]} 40. c7 {[%clk 0:00:13]}  g4 {[%clk 0:00:03]} 41. Kb7 {[%clk 0:00:13]}  Kxe4 {[%clk 0:00:04]} 42. c8=Q {[%clk 0:00:13]}  Rxc8 {[%clk 0:00:04]} 43. Kxc8 {[%clk 0:00:14]}  g3 {[%clk 0:00:04]} 44. a8=Q+ {[%clk 0:00:14]}  Ke3 {[%clk 0:00:00]} 45. Rb3+ {[%clk 0:00:14]} 1-0


[Site "https://www.chess.com"]

[Event "Titled Tuesday Blitz November 07 Late 2023"]
[White "Tifferet, Shaked"]
[Black "MKlose11"]
[WhiteFideId "2811529"]
[WhiteElo "2514"]
[BlackElo "2713"]
[Result "0-1"]
[Round "5"]
[TimeControl "180+1"]
[Date "2023.11.07"]
[WhiteClock "0:00:48"]
[BlackClock "0:01:19"]
[Board "51"]

1. e4 {[%clk 0:03:00]}  e6 {[%clk 0:02:59]} 2. b3 {[%clk 0:03:00]}  d5 {[%clk 0:02:59]} 3. e5 {[%clk 0:03:00]}  c5 {[%clk 0:02:58]} 4. f4 {[%clk 0:03:01]}  Nc6 {[%clk 0:02:58]} 5. Nf3 {[%clk 0:03:01]}  f6 {[%clk 0:02:52]} 6. Bb2 {[%clk 0:03:00]}  fxe5 {[%clk 0:02:53]} 7. Nxe5 {[%clk 0:03:00]}  Nxe5 {[%clk 0:02:52]} 8. Bxe5 {[%clk 0:02:59]}  Nf6 {[%clk 0:02:49]} 9. Nc3 {[%clk 0:02:56]}  Bd6 {[%clk 0:02:47]} 10. Bd3 {[%clk 0:02:55]}  O-O {[%clk 0:02:45]} 11. O-O {[%clk 0:02:54]}  g6 {[%clk 0:02:39]} 12. Qe2 {[%clk 0:02:46]}  a6 {[%clk 0:02:33]} 13. a4 {[%clk 0:02:43]}  b6 {[%clk 0:02:31]} 14. Rae1 {[%clk 0:02:41]}  Qc7 {[%clk 0:02:27]} 15. Kh1 {[%clk 0:02:29]}  Qe7 {[%clk 0:02:18]} 16. Rf3 {[%clk 0:02:24]}  a5 {[%clk 0:02:13]} 17. Rg3 {[%clk 0:02:05]}  Bxe5 {[%clk 0:02:01]} 18. fxe5 {[%clk 0:02:04]}  Ne8 {[%clk 0:01:55]} 19. Qe3 {[%clk 0:01:40]}  Bd7 {[%clk 0:01:36]} 20. Qh6 {[%clk 0:01:31]}  Ng7 {[%clk 0:01:31]} 21. Rh3 {[%clk 0:01:07]}  Nf5 {[%clk 0:01:30]} 22. Bxf5 {[%clk 0:01:07]}  Rxf5 {[%clk 0:01:28]} 23. Rg3 {[%clk 0:00:54]}  Raf8 {[%clk 0:01:27]} 24. h4 {[%clk 0:00:54]}  Bc6 {[%clk 0:01:24]} 25. h5 {[%clk 0:00:51]}  Qh4+ {[%clk 0:01:20]} 26. Rh3 {[%clk 0:00:47]}  Qxe1+ {[%clk 0:01:19]} 27. Kh2 {[%clk 0:00:48]}  Qxe5+ {[%clk 0:01:20]} 28. Rg3 {[%clk 0:00:48]}  Rxh5+ {[%clk 0:01:19]} 0-1


[Site "https://www.chess.com"]

[Event "Titled Tuesday Blitz November 07 Late 2023"]
[White "Hilary46"]
[Black "JackRodgers"]
[WhiteElo "2704"]
[BlackElo "2507"]
[Result "0-1"]
[Round "5"]
[TimeControl "180+1"]
[Date "2023.11.07"]
[WhiteClock "0:00:01"]
[BlackClock "0:00:09"]
[Board "52"]

1. e4 {[%clk 0:03:00]}  c5 {[%clk 0:03:00]} 2. Nf3 {[%clk 0:03:00]}  g6 {[%clk 0:02:59]} 3. d4 {[%clk 0:03:00]}  cxd4 {[%clk 0:03:00]} 4. Nxd4 {[%clk 0:03:01]}  Nc6 {[%clk 0:03:00]} 5. Nc3 {[%clk 0:03:01]}  Bg7 {[%clk 0:03:00]} 6. Be3 {[%clk 0:03:02]}  Nf6 {[%clk 0:03:00]} 7. Nxc6 {[%clk 0:03:03]}  bxc6 {[%clk 0:03:00]} 8. e5 {[%clk 0:03:03]}  Ng8 {[%clk 0:03:01]} 9. Bd4 {[%clk 0:03:04]}  Nh6 {[%clk 0:03:02]} 10. e6 {[%clk 0:03:04]}  O-O {[%clk 0:03:00]} 11. Bxg7 {[%clk 0:03:04]}  Kxg7 {[%clk 0:03:01]} 12. exd7 {[%clk 0:03:05]}  Qxd7 {[%clk 0:03:01]} 13. Qxd7 {[%clk 0:03:05]}  Bxd7 {[%clk 0:03:02]} 14. O-O-O {[%clk 0:03:05]}  Rfd8 {[%clk 0:03:02]} 15. Bc4 {[%clk 0:02:54]}  Ng4 {[%clk 0:02:30]} 16. Rd2 {[%clk 0:02:53]}  Bf5 {[%clk 0:02:19]} 17. Rxd8 {[%clk 0:02:53]}  Rxd8 {[%clk 0:02:19]} 18. f3 {[%clk 0:02:54]}  Ne3 {[%clk 0:02:15]} 19. Bb3 {[%clk 0:02:55]}  Nxg2 {[%clk 0:02:12]} 20. Ba4 {[%clk 0:02:55]}  c5 {[%clk 0:01:55]} 21. Rd1 {[%clk 0:02:55]}  Rxd1+ {[%clk 0:01:45]} 22. Kxd1 {[%clk 0:02:56]}  Ne3+ {[%clk 0:01:40]} 23. Kc1 {[%clk 0:02:49]}  Bh3 {[%clk 0:01:26]} 24. Bb5 {[%clk 0:02:41]}  Bf5 {[%clk 0:01:17]} 25. Ne4 {[%clk 0:02:37]}  Bxe4 {[%clk 0:01:14]} 26. fxe4 {[%clk 0:02:38]}  Kf6 {[%clk 0:01:12]} 27. Kd2 {[%clk 0:02:13]}  Ng4 {[%clk 0:01:12]} 28. h4 {[%clk 0:01:46]}  Ke5 {[%clk 0:01:11]} 29. Bc6 {[%clk 0:01:39]}  Nf2 {[%clk 0:00:51]} 30. Ke3 {[%clk 0:01:39]}  Nd1+ {[%clk 0:00:45]} 31. Kd2 {[%clk 0:01:40]}  Nxb2 {[%clk 0:00:46]} 32. Bb5 {[%clk 0:01:40]}  c4 {[%clk 0:00:33]} 33. Kc3 {[%clk 0:01:26]}  Nd1+ {[%clk 0:00:32]} 34. Kxc4 {[%clk 0:01:26]}  Kxe4 {[%clk 0:00:29]} 35. Bc6+ {[%clk 0:01:21]}  Ke5 {[%clk 0:00:29]} 36. Kb5 {[%clk 0:01:11]}  Nc3+ {[%clk 0:00:26]} 37. Kc4 {[%clk 0:00:44]}  Nxa2 {[%clk 0:00:27]} 38. Bb5 {[%clk 0:00:44]}  a5 {[%clk 0:00:23]} 39. c3 {[%clk 0:00:42]}  Kd6 {[%clk 0:00:20]} 40. Kb3 {[%clk 0:00:42]}  Nxc3 {[%clk 0:00:19]} 41. Kxc3 {[%clk 0:00:42]}  Ke5 {[%clk 0:00:17]} 42. Be8 {[%clk 0:00:37]}  f5 {[%clk 0:00:16]} 43. h5 {[%clk 0:00:37]}  Kf6 {[%clk 0:00:13]} 44. h6 {[%clk 0:00:23]}  g5 {[%clk 0:00:11]} 45. Kd4 {[%clk 0:00:23]}  e5+ {[%clk 0:00:11]} 46. Kd5 {[%clk 0:00:22]}  e4 {[%clk 0:00:11]} 47. Kd4 {[%clk 0:00:22]}  g4 {[%clk 0:00:12]} 48. Ke3 {[%clk 0:00:20]}  Kg5 {[%clk 0:00:12]} 49. Bd7 {[%clk 0:00:19]}  g3 {[%clk 0:00:10]} 50. Ke2 {[%clk 0:00:02]}  f4 {[%clk 0:00:10]} 51. Bc6 {[%clk 0:00:02]}  e3 {[%clk 0:00:07]} 52. Be4 {[%clk 0:00:01]}  Kxh6 {[%clk 0:00:07]} 53. Bc2 {[%clk 0:00:02]}  Kg7 {[%clk 0:00:07]} 54. Kf3 {[%clk 0:00:03]}  h5 {[%clk 0:00:07]} 55. Bd1 {[%clk 0:00:03]}  Kf6 {[%clk 0:00:07]} 56. Be2 {[%clk 0:00:03]}  Kg5 {[%clk 0:00:07]} 57. Bf1 {[%clk 0:00:03]}  a4 {[%clk 0:00:07]} 58. Bc4 {[%clk 0:00:04]}  a3 {[%clk 0:00:08]} 59. Bd5 {[%clk 0:00:05]}  h4 {[%clk 0:00:08]} 60. Be6 {[%clk 0:00:05]}  h3 {[%clk 0:00:08]} 61. Bd5 {[%clk 0:00:04]}  g2 {[%clk 0:00:08]} 62. Bc4 {[%clk 0:00:02]}  g1=Q {[%clk 0:00:08]} 63. Be2 {[%clk 0:00:01]}  Qg3+ {[%clk 0:00:09]} 0-1


[Site "https://www.chess.com"]

[Event "Titled Tuesday Blitz November 07 Late 2023"]
[White "Perske, Thore"]
[Black "Marchesich, Giovanni"]
[WhiteFideId "12902195"]
[BlackFideId "2824790"]
[WhiteElo "2646"]
[BlackElo "2433"]
[Result "1-0"]
[Round "5"]
[TimeControl "180+1"]
[Date "2023.11.07"]
[WhiteClock "0:02:05"]
[BlackClock "0:02:01"]
[Board "53"]

1. e4 {[%clk 0:03:00]}  e5 {[%clk 0:02:59]} 2. Nf3 {[%clk 0:03:00]}  Nc6 {[%clk 0:02:59]} 3. Bb5 {[%clk 0:03:00]}  a6 {[%clk 0:02:59]} 4. Ba4 {[%clk 0:03:00]}  Bc5 {[%clk 0:03:00]} 5. O-O {[%clk 0:03:00]}  Nge7 {[%clk 0:02:59]} 6. c3 {[%clk 0:02:59]}  Ba7 {[%clk 0:03:00]} 7. d4 {[%clk 0:02:59]}  Ng6 {[%clk 0:02:59]} 8. Be3 {[%clk 0:02:51]}  O-O {[%clk 0:02:58]} 9. Nbd2 {[%clk 0:02:51]}  d5 {[%clk 0:02:56]} 10. exd5 {[%clk 0:02:50]}  Qxd5 {[%clk 0:02:56]} 11. c4 {[%clk 0:02:45]}  Qd6 {[%clk 0:02:26]} 12. c5 {[%clk 0:02:32]}  Qe7 {[%clk 0:02:21]} 13. d5 {[%clk 0:02:29]}  Nd4 {[%clk 0:02:21]} 14. Nxd4 {[%clk 0:02:10]}  exd4 {[%clk 0:02:21]} 15. Bxd4 {[%clk 0:02:11]}  Bxc5 {[%clk 0:02:22]} 16. Re1 {[%clk 0:02:10]}  Qd6 {[%clk 0:02:16]} 17. Ne4 {[%clk 0:02:09]}  Qxd5 {[%clk 0:02:05]} 18. Bxc5 {[%clk 0:02:04]}  Qxd1 {[%clk 0:02:01]} 19. Raxd1 {[%clk 0:02:05]} 1-0


[Site "https://www.chess.com"]

[Event "Titled Tuesday Blitz November 07 Late 2023"]
[White "Bochnicka, Vladimir"]
[Black "Fiorito, Francisco"]
[WhiteFideId "14943450"]
[BlackFideId "180165"]
[WhiteElo "2427"]
[BlackElo "2613"]
[Result "1-0"]
[Round "5"]
[TimeControl "180+1"]
[Date "2023.11.07"]
[WhiteClock "0:00:19"]
[BlackClock "0:00:19"]
[Board "54"]

1. e4 {[%clk 0:02:54]}  e5 {[%clk 0:02:59]} 2. Nf3 {[%clk 0:02:53]}  Nf6 {[%clk 0:02:59]} 3. Nxe5 {[%clk 0:02:49]}  d6 {[%clk 0:02:59]} 4. Nf3 {[%clk 0:02:49]}  Nxe4 {[%clk 0:03:00]} 5. Qe2 {[%clk 0:02:49]}  Qe7 {[%clk 0:02:58]} 6. d3 {[%clk 0:02:48]}  Nf6 {[%clk 0:02:58]} 7. Bg5 {[%clk 0:02:48]}  Qxe2+ {[%clk 0:02:55]} 8. Bxe2 {[%clk 0:02:49]}  Be7 {[%clk 0:02:56]} 9. Nc3 {[%clk 0:02:49]}  O-O {[%clk 0:02:47]} 10. O-O-O {[%clk 0:02:49]}  h6 {[%clk 0:02:44]} 11. Bd2 {[%clk 0:02:49]}  c6 {[%clk 0:02:39]} 12. h3 {[%clk 0:02:48]}  Be6 {[%clk 0:02:35]} 13. Rdg1 {[%clk 0:02:46]}  Nbd7 {[%clk 0:02:29]} 14. Nd4 {[%clk 0:02:45]}  Nc5 {[%clk 0:02:17]} 15. Nxe6 {[%clk 0:02:45]}  Nxe6 {[%clk 0:02:17]} 16. f4 {[%clk 0:02:42]}  Nd4 {[%clk 0:02:16]} 17. Bd1 {[%clk 0:02:42]}  d5 {[%clk 0:02:14]} 18. g4 {[%clk 0:02:42]}  g6 {[%clk 0:01:56]} 19. h4 {[%clk 0:02:30]}  Nh7 {[%clk 0:01:45]} 20. Rg3 {[%clk 0:02:05]}  Bf6 {[%clk 0:01:21]} 21. f5 {[%clk 0:01:53]}  g5 {[%clk 0:00:58]} 22. hxg5 {[%clk 0:01:53]}  Bxg5 {[%clk 0:00:57]} 23. Bxg5 {[%clk 0:01:51]}  hxg5 {[%clk 0:00:57]} 24. Rgh3 {[%clk 0:01:49]}  Nf6 {[%clk 0:00:57]} 25. Na4 {[%clk 0:01:19]}  Kg7 {[%clk 0:00:46]} 26. c3 {[%clk 0:01:17]}  Nb5 {[%clk 0:00:46]} 27. Nc5 {[%clk 0:01:17]}  b6 {[%clk 0:00:46]} 28. Nb3 {[%clk 0:01:15]}  Rh8 {[%clk 0:00:44]} 29. Nd2 {[%clk 0:00:58]}  Rxh3 {[%clk 0:00:43]} 30. Rxh3 {[%clk 0:00:59]}  Re8 {[%clk 0:00:43]} 31. Nf3 {[%clk 0:00:50]}  Nh7 {[%clk 0:00:37]} 32. Kd2 {[%clk 0:00:49]}  Nd6 {[%clk 0:00:30]} 33. d4 {[%clk 0:00:48]}  Ne4+ {[%clk 0:00:30]} 34. Kc1 {[%clk 0:00:44]}  Nf2 {[%clk 0:00:30]} 35. Rg3 {[%clk 0:00:39]}  Re1 {[%clk 0:00:21]} 36. Nxe1 {[%clk 0:00:39]}  Ne4 {[%clk 0:00:19]} 37. Rg1 {[%clk 0:00:38]}  Nhf6 {[%clk 0:00:17]} 38. Nd3 {[%clk 0:00:38]}  Nd7 {[%clk 0:00:15]} 39. Ne5 {[%clk 0:00:38]}  Nb8 {[%clk 0:00:16]} 40. Bc2 {[%clk 0:00:37]}  Nd6 {[%clk 0:00:16]} 41. Rh1 {[%clk 0:00:31]}  f6 {[%clk 0:00:16]} 42. Ng6 {[%clk 0:00:31]}  Nd7 {[%clk 0:00:17]} 43. Rh8 {[%clk 0:00:30]}  Nc4 {[%clk 0:00:17]} 44. Rd8 {[%clk 0:00:30]}  Nc5 {[%clk 0:00:14]} 45. dxc5 {[%clk 0:00:30]}  bxc5 {[%clk 0:00:14]} 46. Rd7+ {[%clk 0:00:30]}  Kg8 {[%clk 0:00:15]} 47. Rxa7 {[%clk 0:00:31]}  Ne3 {[%clk 0:00:16]} 48. a4 {[%clk 0:00:30]}  Nxg4 {[%clk 0:00:16]} 49. a5 {[%clk 0:00:31]}  Ne3 {[%clk 0:00:16]} 50. a6 {[%clk 0:00:30]}  Nc4 {[%clk 0:00:17]} 51. Rb7 {[%clk 0:00:28]}  Na5 {[%clk 0:00:17]} 52. a7 {[%clk 0:00:28]}  Nxb7 {[%clk 0:00:16]} 53. a8=Q+ {[%clk 0:00:24]}  Kg7 {[%clk 0:00:17]} 54. Qxb7+ {[%clk 0:00:25]}  Kh6 {[%clk 0:00:18]} 55. Bd1 {[%clk 0:00:18]}  g4 {[%clk 0:00:19]} 56. Qc7 {[%clk 0:00:17]}  Kg5 {[%clk 0:00:20]} 57. Qf4+ {[%clk 0:00:18]}  Kh5 {[%clk 0:00:19]} 58. Bxg4# {[%clk 0:00:19]} 1-0


[Site "https://www.chess.com"]

[Event "Titled Tuesday Blitz November 07 Late 2023"]
[White "Novik, Maxim"]
[Black "Mekhitarian, Krikor Sevag"]
[WhiteFideId "4102924"]
[BlackFideId "2107660"]
[WhiteElo "2491"]
[BlackElo "2759"]
[Result "1-0"]
[Round "5"]
[TimeControl "180+1"]
[Date "2023.11.07"]
[WhiteClock "0:00:58"]
[BlackClock "0:00:03"]
[Board "59"]

1. e4 {[%clk 0:02:57]}  e6 {[%clk 0:03:00]} 2. d4 {[%clk 0:02:55]}  d5 {[%clk 0:03:00]} 3. e5 {[%clk 0:02:55]}  c5 {[%clk 0:03:00]} 4. c3 {[%clk 0:02:55]}  Nc6 {[%clk 0:03:00]} 5. Nf3 {[%clk 0:02:54]}  Bd7 {[%clk 0:03:01]} 6. Bd3 {[%clk 0:02:53]}  cxd4 {[%clk 0:03:01]} 7. cxd4 {[%clk 0:02:51]}  Qb6 {[%clk 0:03:00]} 8. Be2 {[%clk 0:02:47]}  Nge7 {[%clk 0:02:55]} 9. Nc3 {[%clk 0:02:44]}  Nf5 {[%clk 0:02:55]} 10. Na4 {[%clk 0:02:44]}  Qa5+ {[%clk 0:02:41]} 11. Nc3 {[%clk 0:02:19]}  Bb4 {[%clk 0:02:31]} 12. O-O {[%clk 0:02:08]}  Bxc3 {[%clk 0:02:30]} 13. bxc3 {[%clk 0:02:08]}  Qxc3 {[%clk 0:02:00]} 14. Bd2 {[%clk 0:02:07]}  Qa3 {[%clk 0:01:56]} 15. Rb1 {[%clk 0:02:06]}  b6 {[%clk 0:01:51]} 16. Bb5 {[%clk 0:01:58]}  O-O {[%clk 0:01:48]} 17. Bxc6 {[%clk 0:01:56]}  Bxc6 {[%clk 0:01:49]} 18. Bb4 {[%clk 0:01:57]}  Qxa2 {[%clk 0:01:45]} 19. Bxf8 {[%clk 0:01:56]}  Kxf8 {[%clk 0:01:43]} 20. g4 {[%clk 0:01:54]}  Ne7 {[%clk 0:01:42]} 21. Qd3 {[%clk 0:01:52]}  Kg8 {[%clk 0:01:34]} 22. Rfc1 {[%clk 0:01:46]}  Be8 {[%clk 0:01:24]} 23. h4 {[%clk 0:01:34]}  h6 {[%clk 0:01:19]} 24. h5 {[%clk 0:01:32]}  Qa4 {[%clk 0:00:52]} 25. Rc7 {[%clk 0:01:29]}  Nc6 {[%clk 0:00:41]} 26. g5 {[%clk 0:01:27]}  Qc4 {[%clk 0:00:35]} 27. Qe3 {[%clk 0:01:24]}  hxg5 {[%clk 0:00:28]} 28. Rc1 {[%clk 0:01:23]}  Qa4 {[%clk 0:00:24]} 29. Qxg5 {[%clk 0:01:09]}  Qa3 {[%clk 0:00:24]} 30. h6 {[%clk 0:01:05]}  g6 {[%clk 0:00:16]} 31. Kg2 {[%clk 0:01:03]}  Qd3 {[%clk 0:00:03]} 32. Qf6 {[%clk 0:00:58]} 1-0


[Site "https://www.chess.com"]

[Event "Titled Tuesday Blitz November 07 Late 2023"]
[White "Martinez Ramirez, Lennis"]
[Black "MclarenF1LM"]
[WhiteFideId "3509079"]
[WhiteElo "2708"]
[BlackElo "2487"]
[Result "1-0"]
[Round "5"]
[TimeControl "180+1"]
[Date "2023.11.07"]
[WhiteClock "0:01:24"]
[BlackClock "0:00:00"]
[Board "61"]

1. c4 {[%clk 0:03:00]}  e6 {[%clk 0:02:57]} 2. g3 {[%clk 0:03:00]}  Nf6 {[%clk 0:02:57]} 3. Nf3 {[%clk 0:03:01]}  d5 {[%clk 0:02:56]} 4. Bg2 {[%clk 0:03:01]}  Be7 {[%clk 0:02:56]} 5. O-O {[%clk 0:03:02]}  O-O {[%clk 0:02:57]} 6. b3 {[%clk 0:03:02]}  c5 {[%clk 0:02:57]} 7. cxd5 {[%clk 0:03:02]}  exd5 {[%clk 0:02:57]} 8. d4 {[%clk 0:03:02]}  Nc6 {[%clk 0:02:57]} 9. Bb2 {[%clk 0:03:02]}  Re8 {[%clk 0:02:57]} 10. Nc3 {[%clk 0:03:02]}  Bg4 {[%clk 0:02:56]} 11. dxc5 {[%clk 0:02:54]}  Bxc5 {[%clk 0:02:54]} 12. Rc1 {[%clk 0:02:54]}  Be7 {[%clk 0:02:35]} 13. e3 {[%clk 0:02:53]}  Rc8 {[%clk 0:02:33]} 14. Ne2 {[%clk 0:02:53]}  h6 {[%clk 0:02:21]} 15. Nf4 {[%clk 0:02:53]}  Qa5 {[%clk 0:01:50]} 16. a3 {[%clk 0:02:49]}  Rcd8 {[%clk 0:01:48]} 17. b4 {[%clk 0:02:47]}  Qa6 {[%clk 0:01:48]} 18. h3 {[%clk 0:02:45]}  Bf5 {[%clk 0:01:46]} 19. Nd4 {[%clk 0:02:43]}  Nxd4 {[%clk 0:01:46]} 20. Qxd4 {[%clk 0:02:43]}  Be4 {[%clk 0:01:47]} 21. f3 {[%clk 0:02:32]}  Bf5 {[%clk 0:01:31]} 22. g4 {[%clk 0:02:32]}  Bd7 {[%clk 0:01:11]} 23. Rfd1 {[%clk 0:02:28]}  Bc6 {[%clk 0:01:11]} 24. Bf1 {[%clk 0:02:21]}  Qb6 {[%clk 0:01:06]} 25. Qxb6 {[%clk 0:02:21]}  axb6 {[%clk 0:01:07]} 26. b5 {[%clk 0:02:21]}  Bd7 {[%clk 0:01:08]} 27. Bxf6 {[%clk 0:02:15]}  Bxf6 {[%clk 0:01:07]} 28. Nxd5 {[%clk 0:02:16]}  Be7 {[%clk 0:00:59]} 29. Nxb6 {[%clk 0:02:14]}  Be6 {[%clk 0:00:58]} 30. Rxd8 {[%clk 0:02:10]}  Rxd8 {[%clk 0:00:58]} 31. a4 {[%clk 0:02:10]}  Rd2 {[%clk 0:00:55]} 32. Nc4 {[%clk 0:02:09]}  Ra2 {[%clk 0:00:55]} 33. a5 {[%clk 0:01:47]}  Bxc4 {[%clk 0:00:37]} 34. Rxc4 {[%clk 0:01:43]}  Rxa5 {[%clk 0:00:37]} 35. Rc7 {[%clk 0:01:43]}  Bh4 {[%clk 0:00:20]} 36. Bd3 {[%clk 0:01:43]}  Kf8 {[%clk 0:00:18]} 37. f4 {[%clk 0:01:41]}  Ra3 {[%clk 0:00:18]} 38. Bc4 {[%clk 0:01:37]}  Rxe3 {[%clk 0:00:18]} 39. Rxf7+ {[%clk 0:01:37]}  Ke8 {[%clk 0:00:18]} 40. Rxb7 {[%clk 0:01:37]}  Rxh3 {[%clk 0:00:18]} 41. Rxg7 {[%clk 0:01:36]}  Rc3 {[%clk 0:00:18]} 42. Bd5 {[%clk 0:01:32]}  Rc2 {[%clk 0:00:18]} 43. f5 {[%clk 0:01:30]}  Rb2 {[%clk 0:00:17]} 44. Rg6 {[%clk 0:01:25]}  Bg5 {[%clk 0:00:17]} 45. f6 {[%clk 0:01:25]}  Kd7 {[%clk 0:00:13]} 46. f7 {[%clk 0:01:23]}  Ke7 {[%clk 0:00:00]} 47. Re6+ {[%clk 0:01:24]} 1-0


[Site "https://www.chess.com"]

[Event "Titled Tuesday Blitz November 07 Late 2023"]
[White "Kavutskiy, Konstantin"]
[Black "Cristi_Coca"]
[WhiteFideId "2026384"]
[WhiteElo "2676"]
[BlackElo "2481"]
[Result "1-0"]
[Round "5"]
[TimeControl "180+1"]
[Date "2023.11.07"]
[WhiteClock "0:02:12"]
[BlackClock "0:01:54"]
[Board "64"]

1. d4 {[%clk 0:03:00]}  Nf6 {[%clk 0:02:59]} 2. c4 {[%clk 0:03:00]}  g6 {[%clk 0:02:59]} 3. Nc3 {[%clk 0:02:59]}  Bg7 {[%clk 0:02:59]} 4. e4 {[%clk 0:02:58]}  d6 {[%clk 0:03:00]} 5. h3 {[%clk 0:02:58]}  O-O {[%clk 0:03:00]} 6. Be3 {[%clk 0:02:58]}  Nfd7 {[%clk 0:02:58]} 7. Nf3 {[%clk 0:02:55]}  c5 {[%clk 0:02:58]} 8. d5 {[%clk 0:02:55]}  Qa5 {[%clk 0:02:53]} 9. Qd2 {[%clk 0:02:46]}  a6 {[%clk 0:02:50]} 10. a4 {[%clk 0:02:39]}  b5 {[%clk 0:02:39]} 11. cxb5 {[%clk 0:02:39]}  axb5 {[%clk 0:02:39]} 12. Bxb5 {[%clk 0:02:39]}  Ba6 {[%clk 0:02:36]} 13. Bxa6 {[%clk 0:02:35]}  Nxa6 {[%clk 0:02:35]} 14. O-O {[%clk 0:02:35]}  Rfb8 {[%clk 0:02:31]} 15. Rfb1 {[%clk 0:02:28]}  c4 {[%clk 0:02:13]} 16. Nd4 {[%clk 0:02:20]}  Nac5 {[%clk 0:02:07]} 17. Nc6 {[%clk 0:02:13]}  Qb4 {[%clk 0:01:54]} 18. Nxb4 {[%clk 0:02:12]} 1-0


[Site "https://www.chess.com"]